bitfinex/quotes_ETHUSD_20241216
["timestamp","ask_amount","ask_price","bid_price","bid_amount"]
[1734375512673,0.7503,4074.3,4071.8,0.98750642]
[1734375512900,2.571,4074.2,4071.8,3.98750642]
[1734375513109,0.7522,4074.0,4071.8,0.98750642]
[1734375513288,0.7522,4074.0,4071.7,2.27852254]
[1734375513820,0.7522,4074.0,4071.8,0.98750642]
[1734375514612,0.7522,4074.0,4071.9,0.98750642]
[1734375514918,0.7522,4074.0,4071.7,4.48125963]
[1734375514919,0.7522,4074.0,4071.8,0.98750642]
[1734375515309,0.7522,4074.0,4071.9,0.98750642]
[1734375515672,0.7522,4074.0,4072.0,0.98750642]
[1734375515920,0.7522,4074.0,4072.1,0.98750642]
[1734375516327,0.7522,4074.0,4072.3,0.98750642]
[1734375516539,0.7522,4074.0,4072.8,0.98750642]
[1734375517032,0.7522,4074.0,4072.7,0.98750642]
[1734375517240,0.7522,4074.0,4072.6,0.98750642]
[1734375517385,0.7522,4074.0,4072.2,1.97501285]
[1734375517386,0.7522,4074.0,4072.2,0.98750642]
[1734375517732,0.7522,4074.0,4072.1,2.20814075]
[1734375517929,0.7522,4074.0,4072.1,0.98750642]
[1734375518143,0.7522,4074.0,4071.9,1.48125963]
[1734375518144,0.8184,4073.8,4071.9,0.98750642]
[1734375518324,2.571,4073.3,4071.8,0.98750642]
[1734375518486,0.8184,4073.1,4070.9,0.98750642]
[1734375518840,0.8184,4073.1,4070.7,1.48125963]
[1734375518841,0.8184,4072.9,4070.8,1.20823582]
[1734375519145,0.55,4072.6,4070.3,0.98750642]
[1734375519283,0.55,4072.4,4069.9,0.98750642]
[1734375519480,0.8184,4072.1,4069.9,1.24473217]
[1734375519724,0.8184,4072.1,4069.7,2.19728268]
[1734375520112,0.8184,4072.1,4069.4,0.98750642]
[1734375520441,2.571,4073.5,4069.2,1.64748373]
[1734375520442,2.571,4071.4,4069.2,0.1662241]
[1734375520618,0.55,4071.7,4069.2,0.1662241]
[1734375520619,0.7689,4071.1,4069.2,0.1662241]
[1734375520942,3.3399,4071.1,4069.2,0.1662241]
[1734375521146,0.7689,4071.0,4069.2,0.1662241]
[1734375521308,0.7689,4071.0,4067.8,1.48125963]
[1734375521309,2.571,4070.5,4067.8,0.856368]
[1734375521508,2.571,4070.5,4067.1,1.27154189]
[1734375521844,9.2071,4071.3,4067.6,2.2049264]
[1734375521845,0.5122,4070.2,4067.6,2.2049264]
[1734375522146,0.5122,4070.2,4067.3,0.7668]
[1734375522147,0.5122,4070.2,4067.8,1.25533065]
[1734375522283,0.5122,4070.2,4067.5,1.28271044]
[1734375522484,0.5122,4070.2,4067.7,1.25372066]
[1734375522699,0.5122,4070.2,4067.6,0.98750642]
[1734375522700,0.5122,4070.2,4067.6,1.21741998]
[1734375522900,0.5122,4070.2,4067.6,2.2049264]
[1734375523187,0.5122,4070.2,4067.6,1.21741998]
[1734375523387,0.5122,4070.2,4067.5,1.28271044]
[1734375524024,0.5122,4070.2,4067.4,1.29773222]
[1734375524332,0.5122,4070.2,4066.9,0.98750642]
[1734375524500,0.5122,4070.2,4066.8,2.24376701]
[1734375524708,0.5122,4070.2,4066.9,1.21735494]
[1734375525150,0.5122,4070.2,4066.9,2.20486136]
[1734375525321,0.5122,4070.2,4067.0,0.98750642]
[1734375525590,0.5122,4070.2,4067.1,1.27154189]
[1734375525794,0.5122,4070.2,4067.5,1.28271044]
[1734375526034,0.5122,4070.2,4067.7,1.25372066]
[1734375526237,0.5122,4070.2,4067.3,1.27212449]
[1734375526392,0.5122,4070.2,4066.9,1.21735494]
[1734375526591,0.5122,4070.2,4066.9,5.01604683]
[1734375527246,0.5122,4070.2,4066.7,1.29571057]
[1734375527430,0.55,4069.9,4066.0,1.23589056]
[1734375527631,0.8308,4069.8,4066.1,1.22177922]
[1734375527939,0.8308,4069.8,4066.0,0.981754]
[1734375528141,0.8308,4069.8,4066.1,1.22177922]
[1734375528978,0.8308,4069.8,4066.7,1.29571057]
[1734375529143,0.8308,4069.8,4067.0,1.27864861]
[1734375529342,0.8308,4069.8,4066.9,0.55]
[1734375529876,0.8308,4069.8,4067.2,1.21989671]
[1734375530030,0.8308,4069.8,4067.0,1.27864861]
[1734375530231,0.8308,4069.8,4067.1,1.82154189]
[1734375530426,0.8308,4069.8,4067.9,0.79869189]
[1734375530678,0.8308,4069.8,4068.0,4.76813387]
[1734375531578,0.25542789,4073.1,4068.9,0.79869189]
[1734375531790,0.25542789,4073.1,4069.0,0.55]
[1734375532127,0.65320457,4073.1,4069.0,0.55]
[1734375532441,2.98207668,4073.0,4069.0,0.55]
[1734375532649,2.98207668,4073.0,4067.3,1.48125963]
[1734375532650,2.571,4072.5,4067.4,0.79869189]
[1734375532851,2.571,4072.1,4067.4,0.79869189]
[1734375533051,0.39777668,4072.0,4067.5,1.28271044]
[1734375533260,0.29820767,4071.9,4067.5,1.28271044]
[1734375533669,2.571,4071.8,4068.0,1.21813387]
[1734375533852,2.571,4071.8,4067.9,0.79869189]
[1734375534371,2.571,4071.8,4068.0,0.55]
[1734375534685,0.3484,4071.2,4068.2,1.23460185]
[1734375534829,0.3484,4071.2,4068.5,1.22123334]
[1734375535029,0.3484,4071.2,4068.2,0.55]
[1734375535247,0.3484,4071.2,4068.5,1.22123334]
[1734375535450,2.571,4071.0,4068.1,1.21823783]
[1734375535659,0.29820767,4071.9,4067.7,1.25372066]
[1734375535660,0.3484,4070.7,4067.7,1.25372066]
[1734375536489,0.3484,4070.6,4067.7,1.25372066]
[1734375536719,0.3484,4070.6,4067.9,1.23600491]
[1734375536851,2.9194,4070.2,4068.0,0.55]
[1734375537051,0.3484,4070.1,4068.0,0.55]
[1734375537252,2.571,4069.9,4066.7,2.54139831]
[1734375537583,0.3484,4069.6,4066.7,1.55389189]
[1734375537803,0.3484,4069.6,4066.8,1.25626059]
[1734375538294,0.3484,4069.6,4066.8,0.244]
[1734375538510,0.3484,4069.6,4066.9,1.24193755]
[1734375538797,0.3484,4069.6,4066.9,0.02458261]
[1734375539020,0.3484,4069.6,4067.9,2.02530491]
[1734375539304,0.25,4073.2,4067.9,2.02530491]
[1734375539305,8.95,4073.5,4068.8,0.55]
[1734375539508,0.895,4073.4,4068.8,0.55]
[1734375539650,2.571,4073.3,4068.8,0.55]
[1734375540045,2.571,4073.3,4068.9,0.26856987]
[1734375540337,2.571,4073.3,4069.7,0.55]
[1734375540504,1.02025745,4073.4,4069.5,0.55]
[1734375540505,2.571,4073.2,4069.5,0.55]
[1734375540658,2.571,4073.0,4069.8,0.55]
[1734375540856,2.571,4073.0,4069.9,1.24473217]
[1734375541109,2.571,4073.0,4069.8,1.7868522]
[1734375541901,2.571,4073.0,4069.7,0.794]
[1734375542068,0.26962575,4073.1,4069.4,0.79869189]
[1734375542069,2.571,4072.8,4069.4,0.55]
[1734375542272,2.571,4072.4,4068.3,0.98750642]
[1734375542476,2.571,4072.4,4068.7,0.7813]
[1734375543013,2.571,4072.4,4068.8,1.20998197]
[1734375543150,2.571,4072.6,4070.0,1.24788964]
[1734375543471,0.3121,4072.7,4069.9,0.80586435]
[1734375543670,8.95,4075.2,4070.0,4.79788964]
[1734375543885,0.12550942,4074.1,4070.5,1.21612252]
[1734375544051,8.95,4075.0,4070.6,0.55]
[1734375544258,2.5441,4075.3,4070.8,0.55]
[1734375544259,2.69649802,4074.8,4070.8,0.55]
[1734375545157,2.69649802,4074.8,4070.4,1.21734721]
[1734375545359,2.69649802,4074.8,4069.0,2.99400292]
[1734375545360,2.571,4074.3,4069.4,5.98324776]
[1734375545682,0.55,4074.4,4069.4,5.98324776]
[1734375545683,2.571,4073.5,4069.4,0.7804]
[1734375545862,4.29783947,4074.4,4069.5,1.22459843]
[1734375545863,2.571,4073.3,4069.5,1.22459843]
[1734375546503,2.571,4073.3,4069.4,0.7804]
[1734375546699,2.571,4073.3,4069.6,0.79869189]
[1734375546901,0.2571,4073.4,4069.8,1.2368522]
[1734375547406,0.2571,4073.4,4069.9,1.24473217]
[1734375547555,0.28281,4073.3,4070.4,0.7873]
[1734375547857,2.69649802,4074.8,4070.5,1.21612252]
[1734375548061,0.18197233,4074.7,4070.5,1.21612252]
[1734375548290,0.18197233,4074.6,4070.4,2.00464721]
[1734375548470,0.18197233,4074.5,4070.4,0.7873]
[1734375548685,2.75297233,4074.4,4070.5,1.24068344]
[1734375548885,2.571,4074.4,4070.7,0.79869189]
[1734375549084,0.28784703,4074.5,4070.8,0.02455812]
[1734375549304,0.28784703,4074.5,4070.9,0.8251]
[1734375549589,0.28784703,4074.5,4071.2,0.79869189]
[1734375549756,0.2858847,4074.4,4071.2,0.79869189]
[1734375549958,0.2858847,4074.4,4070.9,0.8251]
[1734375550362,0.2858847,4074.4,4070.9,1.62379189]
[1734375550796,2.571,4074.6,4070.9,1.62379189]
[1734375551799,2.571,4074.6,4071.0,0.0245565]
[1734375552175,2.571,4074.6,4071.1,1.22790274]
[1734375552360,2.571,4074.6,4071.3,1.22059601]
[1734375552765,0.12508783,4075.2,4071.3,1.22059601]
[1734375552961,2.571,4075.1,4071.2,1.27672875]
[1734375553175,2.571,4074.9,4071.1,1.22790274]
[1734375553562,2.571,4074.9,4071.6,0.8152]
[1734375553900,0.26960878,4075.2,4071.6,0.8152]
[1734375553901,2.84060878,4075.2,4071.7,1.29101612]
[1734375554066,0.26960878,4075.2,4072.7,0.7722]
[1734375554260,8.95,4077.3,4072.7,0.7722]
[1734375554505,0.12475889,4076.3,4073.3,0.79869189]
[1734375554678,9.07362279,4077.7,4073.3,0.79869189]
[1734375554883,0.12471098,4077.0,4073.3,0.79869189]
[1734375555277,2.571,4077.6,4073.3,0.79869189]
[1734375555499,0.12470497,4077.1,4073.4,0.7722]
[1734375555825,2.571,4077.4,4073.4,3.79674345]
[1734375555988,2.69562277,4077.4,4073.4,5.07137588]
[1734375556326,2.69562277,4077.4,4073.5,1.26811492]
[1734375556624,2.84056228,4077.3,4073.4,3.79674345]
[1734375557036,2.84056228,4077.3,4073.4,3.79674152]
[1734375557202,2.84056228,4077.3,4073.9,5.08661299]
[1734375557546,2.84056228,4077.3,4073.8,0.7876]
[1734375557686,0.1245152,4077.2,4073.9,1.25761299]
[1734375557890,2.85505623,4077.2,4074.2,1.24723302]
[1734375558090,8.95,4079.1,4074.3,0.7532]
[1734375558502,0.97988,4079.2,4074.3,0.7532]
[1734375558503,2.55872511,4078.3,4074.4,1.20039618]
[1734375558702,2.55872511,4078.3,4074.3,0.7532]
[1734375558917,0.12442511,4078.3,4074.6,0.79869189]
[1734375559117,0.12442511,4078.3,4074.7,1.26054476]
[1734375559320,0.12442511,4078.3,4074.6,0.82322583]
[1734375559693,0.12442511,4078.3,4074.3,0.7532]
[1734375559925,0.12442511,4078.3,4074.3,1.99257506]
[1734375560133,2.571,4078.1,4074.3,1.99257506]
[1734375560443,2.571,4078.1,4074.3,0.7532]
[1734375560646,2.571,4078.1,4074.4,1.20039618]
[1734375560807,2.8352919,4077.8,4074.4,1.20039618]
[1734375561686,2.8352919,4077.8,4074.3,0.7532]
[1734375561839,2.571,4077.6,4074.3,0.7532]
[1734375562353,2.571,4077.6,4072.7,0.02453963]
[1734375562354,2.571,4077.4,4073.7,0.8084]
[1734375562561,2.571,4077.0,4073.2,0.8084]
[1734375562726,2.571,4077.0,4073.3,1.25181164]
[1734375563073,2.571,4077.0,4073.3,0.02454352]
[1734375563359,8.95,4077.7,4073.8,0.8084]
[1734375563522,8.95,4077.7,4074.2,0.79869189]
[1734375563732,0.92142919,4077.7,4074.3,0.02453557]
[1734375564032,0.00653809,4077.8,4074.5,1.23384057]
[1734375564212,0.00653809,4077.8,4074.6,1.21963718]
[1734375565434,0.00653809,4077.8,4074.4,0.8084]
[1734375565612,0.00653809,4077.8,4073.1,0.79869189]
[1734375565613,3.121,4077.6,4073.1,0.79869189]
[1734375565864,3.121,4077.6,4073.1,0.82323451]
[1734375566416,2.571,4077.4,4074.0,0.7727]
[1734375567685,2.571,4077.4,4074.0,1.98132647]
[1734375567882,2.571,4077.0,4073.4,1.27463243]
[1734375568263,2.571,4077.0,4073.3,0.8243]
[1734375568678,2.571,4076.8,4073.3,0.8243]
[1734375569139,2.571,4076.6,4072.4,0.806]
[1734375569341,2.571,4076.2,4072.4,0.806]
[1734375569582,2.571,4076.0,4072.4,0.806]
[1734375570142,2.571,4075.6,4071.9,0.8064]
[1734375570342,8.95,4075.8,4071.9,0.8064]
[1734375570343,2.571,4075.4,4071.9,0.8064]
[1734375570569,2.571,4075.2,4071.9,0.8064]
[1734375570761,2.571,4075.0,4071.9,0.8064]
[1734375571265,2.571,4075.0,4071.9,0.8309523]
[1734375571469,2.571,4075.0,4072.0,1.23188154]
[1734375571901,2.571,4075.0,4072.2,1.20701685]
[1734375572296,2.571,4075.0,4072.1,0.0245502]
[1734375572622,2.571,4074.8,4071.4,1.59809189]
[1734375573476,2.571,4074.8,4071.4,2.85469906]
[1734375573671,2.571,4074.8,4071.5,3.0]
[1734375573901,2.571,4074.8,4071.6,4.29588536]
[1734375574375,8.95,4075.7,4072.0,1.23188154]
[1734375574575,0.895,4075.6,4072.1,0.02454742]
[1734375575009,8.95,4077.3,4072.1,0.02454742]
[1734375575193,0.18175197,4077.2,4073.0,0.79869189]
[1734375575528,2.571,4077.6,4073.1,0.02454253]
[1734375575696,0.1817792,4077.5,4073.1,0.02454253]
[1734375576015,0.18177618,4077.4,4073.2,1.27701884]
[1734375576175,2.571,4077.2,4073.2,1.27701884]
[1734375576375,0.18177618,4077.1,4073.2,1.27701884]
[1734375576576,0.18177618,4077.1,4073.1,1.25729391]
[1734375577532,0.18177618,4077.1,4073.5,0.79869189]
[1734375577689,2.571,4077.7,4073.6,0.02453912]
[1734375577892,0.1820277,4077.6,4073.7,1.24138223]
[1734375578109,0.1820277,4077.6,4073.5,0.79869189]
[1734375578110,2.571,4077.7,4073.9,1.25761299]
[1734375578436,0.18211102,4077.6,4074.0,0.02453852]
[1734375578595,0.00653809,4077.8,4074.0,0.02453852]
[1734375578795,0.00653809,4077.8,4074.2,1.24723302]
[1734375579124,0.00653809,4077.8,4074.4,1.20039618]
[1734375579639,0.00653809,4077.8,4074.3,0.02453548]
[1734375580148,0.00653809,4077.8,4074.4,1.96149618]
[1734375580446,0.00653809,4077.8,4074.6,1.21963718]
[1734375580591,0.00653809,4077.8,4074.5,0.02453493]
[1734375581048,0.00653809,4077.8,4074.6,1.21963718]
[1734375581604,0.00653809,4077.8,4074.8,1.27218179]
[1734375582701,0.00653809,4077.8,4074.7,0.02453489]
[1734375583035,0.00653809,4077.8,4074.8,1.27218179]
[1734375583544,0.00653809,4077.8,4075.4,1.21065545]
[1734375583752,0.00653809,4077.8,4075.6,1.263411]
[1734375583947,0.00653809,4077.8,4075.8,1.26615157]
[1734375584717,0.00653809,4077.8,4075.9,0.02452615]
[1734375584918,0.00653809,4077.8,4076.2,4.26814674]
[1734375585135,0.00653809,4077.8,4076.4,1.28537739]
[1734375586503,0.55,4079.9,4076.4,1.28537739]
[1734375586796,0.55,4079.9,4076.3,0.02452307]
[1734375586797,0.55,4079.9,4076.3,1.23008758]
[1734375587355,0.55,4079.9,4076.3,0.02452307]
[1734375587556,0.18185832,4079.8,4076.0,1.21746929]
[1734375587805,0.18185832,4079.7,4076.5,0.79869189]
[1734375588120,0.25511074,4080.3,4076.6,5.11118629]
[1734375588254,2.6157,4081.2,4076.7,1.29140638]
[1734375588255,0.12459825,4080.4,4076.7,1.29140638]
[1734375588621,2.6157,4081.2,4076.9,1.20989913]
[1734375588905,2.576,4081.9,4077.1,2.06226457]
[1734375589113,2.576,4081.9,4077.7,1.22810301]
[1734375589326,2.576,4081.9,4077.9,1.25256296]
[1734375589327,0.2909245,4081.3,4077.9,1.25256296]
[1734375589676,0.2909245,4081.3,4077.8,0.02451419]
[1734375589896,0.2909245,4081.3,4077.9,1.25256296]
[1734375590098,0.2909245,4081.3,4078.0,1.22758936]
[1734375590685,0.2909245,4081.3,4078.0,0.024514]
[1734375590976,0.1662241,4081.3,4078.1,0.02451364]
[1734375591286,0.1662241,4081.3,4078.2,1.25242774]
[1734375592786,0.1662241,4081.3,4077.9,1.25256296]
[1734375593816,0.1662241,4081.3,4078.0,0.0245136]
[1734375594049,0.1662241,4081.3,4078.1,2.32408152]
[1734375594335,0.1662241,4081.3,4078.3,1.25643843]
[1734375594541,0.1662241,4081.3,4078.2,1.25242774]
[1734375596029,0.1662241,4081.3,4078.1,0.79869189]
[1734375596434,0.1662241,4081.3,4078.2,1.25242774]
[1734375596839,0.1662241,4081.3,4078.1,0.79869189]
[1734375597144,2.576,4080.9,4077.5,1.29840056]
[1734375597432,0.55,4081.2,4076.8,1.26522492]
[1734375597433,2.576,4080.5,4076.8,1.26522492]
[1734375597638,2.576,4080.3,4076.8,1.26522492]
[1734375597930,2.576,4080.7,4077.3,1.27656431]
[1734375598119,2.576,4080.7,4077.2,0.79869189]
[1734375598120,2.576,4080.7,4077.5,1.29840056]
[1734375599036,0.1662241,4081.3,4077.3,0.02451626]
[1734375599037,2.7422241,4081.3,4077.3,0.02451626]
[1734375599288,2.7422241,4081.3,4077.5,1.29840056]
[1734375599399,0.1662241,4081.3,4078.9,0.79869189]
[1734375599599,0.1662241,4081.3,4079.1,1.2865282]
[1734375599837,0.1662241,4081.3,4079.2,1.27523994]
[1734375600135,0.1662241,4081.3,4079.0,1.24306874]
[1734375600297,0.1530641,4081.3,4079.1,1.2865282]
[1734375600496,0.1530641,4081.3,4079.3,0.79869189]
[1734375600694,0.1530641,4081.3,4079.5,1.20764627]
[1734375600945,0.1530641,4081.3,4079.7,1.22462008]
[1734375601093,0.1530641,4081.3,4079.6,0.02450377]
[1734375601292,0.1530641,4081.3,4079.5,1.20764627]
[1734375601492,0.1530641,4081.3,4079.3,2.02489818]
[1734375601895,0.1530641,4081.3,4079.0,1.21856316]
[1734375602101,0.1530641,4081.3,4079.2,1.2507337]
[1734375602297,0.1530641,4081.3,4079.4,1.2402739]
[1734375602525,0.1530641,4081.3,4079.4,0.02450619]
[1734375602707,0.1530641,4081.3,4078.4,1.27357865]
[1734375602912,0.1530641,4081.3,4077.6,1.26267084]
[1734375603116,0.1530641,4081.3,4077.4,1.2180167]
[1734375603391,0.1530641,4081.3,4077.0,2.05842364]
[1734375603596,0.1530641,4081.3,4077.3,0.02451733]
[1734375603843,2.576,4081.1,4077.6,1.26267084]
[1734375603995,2.576,4081.1,4077.8,2.04265383]
[1734375604197,0.1530641,4081.3,4078.2,2.05111963]
[1734375604428,0.1530641,4081.3,4079.3,1.20170198]
[1734375604652,0.1530641,4081.3,4079.1,0.7723]
[1734375604866,0.1530641,4081.3,4079.1,0.02450664]
[1734375605072,0.1530641,4081.3,4079.3,1.20170198]
[1734375605282,0.1530641,4081.3,4079.4,0.02450251]
[1734375605438,1e-08,4081.3,4079.9,1.23190304]
[1734375605781,2.576,4083.9,4080.6,0.79869189]
[1734375605923,8.95,4083.8,4079.0,3.98759044]
[1734375606128,2.51181029,4083.7,4079.3,0.79869189]
[1734375606324,2.51181029,4083.7,4079.5,1.20764627]
[1734375606638,1.35921029,4083.7,4079.9,1.23190304]
[1734375606826,1.35921029,4083.7,4080.1,1.29853007]
[1734375607035,1.35921029,4083.7,4080.3,1.22835576]
[1734375607367,0.14840617,4083.6,4080.7,1.28083556]
[1734375607570,0.14840617,4083.6,4080.4,0.5744986]
[1734375607571,0.39242058,4083.5,4078.8,1.48138567]
[1734375607783,12.96183469,4083.6,4078.0,1.20307536]
[1734375607784,0.14242058,4082.9,4078.0,1.20307536]
[1734375607926,0.14242058,4082.7,4078.1,1.20915545]
[1734375608126,0.14242058,4082.5,4078.3,1.25643843]
[1734375608330,0.18109552,4082.4,4078.3,1.25643843]
[1734375608562,0.18109552,4082.4,4078.4,0.02451227]
[1734375608563,0.14242058,4082.0,4078.4,0.02451227]
[1734375608726,0.55,4081.5,4077.9,2.05125485]
[1734375608940,0.14242058,4081.4,4078.0,0.02451227]
[1734375609281,0.14242058,4081.4,4078.1,1.20915545]
[1734375609780,0.14242058,4081.4,4078.2,0.02451226]
[1734375609930,0.55,4082.3,4078.2,0.02451226]
[1734375609931,0.14242058,4081.8,4078.3,1.25643843]
[1734375610141,0.14242058,4081.6,4078.6,0.55]
[1734375610487,0.92735161,4082.6,4076.1,0.79869189]
[1734375610488,0.14242058,4080.6,4076.1,0.79869189]
[1734375610631,0.14242058,4080.6,4075.7,0.98759044]
[1734375610632,0.14242058,4080.2,4075.7,1.20366174]
[1734375610838,4.11342852,4081.1,4075.8,0.04486411]
[1734375610839,0.14242058,4079.8,4075.8,0.04486411]
[1734375611146,8.95,4080.4,4075.7,0.02452517]
[1734375611147,0.14242058,4079.4,4076.0,1.21746929]
[1734375611348,0.14242058,4079.4,4076.1,0.02452423]
[1734375611675,0.14242058,4079.4,4076.2,1.26814674]
[1734375612094,0.55,4079.1,4074.2,0.98759044]
[1734375612392,0.55,4079.1,4074.0,2.28007756]
[1734375612393,0.14242058,4078.4,4074.4,1.20039618]
[1734375612696,0.14242058,4078.2,4074.7,1.26054476]
[1734375612863,0.14242058,4078.2,4074.9,1.29578857]
[1734375613192,0.14242058,4078.0,4075.0,0.02453023]
[1734375613394,0.14242058,4078.0,4073.3,1.97518089]
[1734375613395,0.55,4077.5,4072.9,2.20520018]
[1734375613593,0.55,4077.7,4072.8,1.24035653]
[1734375613793,0.55,4077.3,4072.6,1.25699071]
[1734375614090,0.55,4077.1,4072.7,1.34001157]
[1734375614308,0.55,4076.6,4072.7,0.04489825]
[1734375614465,0.55,4076.6,4072.2,0.02454624]
[1734375614792,0.55,4076.6,4072.3,1.20813519]
[1734375614961,0.55,4076.6,4072.6,1.23244603]
[1734375615164,0.55,4076.6,4072.5,0.79869189]
[1734375615165,3.86342852,4077.3,4072.7,0.02454186]
[1734375615430,0.55,4075.8,4071.1,0.79869189]
[1734375615692,0.55,4075.8,4071.8,1.2140129]
[1734375615902,0.55,4075.8,4071.9,0.02455005]
[1734375616048,8.95,4075.8,4071.3,0.02455003]
[1734375616249,0.55,4075.4,4070.4,0.02455668]
[1734375616477,0.55,4075.4,4070.7,1.25712886]
[1734375616660,0.55,4075.4,4070.8,1.25315503]
[1734375616843,0.55,4075.4,4070.9,1.29463716]
[1734375617048,0.55,4075.2,4070.9,1.29289857]
[1734375617294,0.37873184,4075.1,4071.1,1.22790274]
[1734375617594,0.55,4075.0,4071.3,1.22059601]
[1734375617749,0.55,4075.0,4070.9,1.29289857]
[1734375617948,0.37873184,4074.9,4070.9,1.29289857]
[1734375618200,0.55,4075.2,4071.2,1.82672875]
[1734375618495,0.55,4075.2,4071.5,1.29461194]
[1734375618677,9.2,4075.1,4071.3,0.00173842]
[1734375618887,9.2,4075.1,4069.9,1.48138567]
[1734375618888,2.5434,4074.7,4069.5,1.22459843]
[1734375619190,2.5434,4074.5,4069.7,0.00173911]
[1734375619388,0.61590722,4074.4,4069.8,1.2368522]
[1734375619596,0.61590722,4074.4,4069.9,1.24473217]
[1734375619753,0.61590722,4074.4,4069.4,1.21534134]
[1734375619953,0.36886472,4074.3,4069.6,1.24152827]
[1734375620202,7.49723574,4074.2,4069.3,1.22413037]
[1734375620350,3.0179,4074.0,4069.4,0.00173924]
[1734375620549,3.0179,4073.2,4069.4,0.00173924]
[1734375620865,3.0179,4073.2,4069.2,0.1662241]
[1734375620866,0.55,4073.0,4069.2,0.1662241]
[1734375621059,0.55,4072.8,4069.2,0.1662241]
[1734375621283,0.55,4072.6,4069.2,0.1662241]
[1734375621482,0.31373874,4072.5,4069.2,0.1662241]
[1734375621655,0.55,4072.6,4069.2,0.1662241]
[1734375621989,0.55,4073.0,4069.3,1.22413037]
[1734375622201,0.55,4073.0,4069.2,0.1662241]
[1734375622355,0.55,4072.8,4069.2,0.1662241]
[1734375622864,8.95,4073.9,4069.2,0.1662241]
[1734375623063,0.78661005,4074.1,4069.2,0.1662241]
[1734375623064,0.78661005,4074.1,4069.4,1.21534134]
[1734375623367,3.86342852,4075.2,4069.6,1.24152827]
[1734375623368,8.95,4075.1,4069.6,1.24152827]
[1734375623553,2.5385,4075.0,4070.0,1.24788964]
[1734375623877,1.09566205,4075.8,4071.0,1.28104481]
[1734375624080,0.12066205,4075.8,4071.3,0.55]
[1734375624266,0.980615,4075.7,4071.3,0.55]
[1734375624467,0.980615,4075.7,4071.2,1.27672875]
[1734375624468,2.5385,4075.2,4071.2,0.55]
[1734375624809,2.5385,4074.6,4071.2,0.55]
[1734375624954,2.576,4074.5,4071.2,0.55]
[1734375625152,2.576,4074.3,4070.8,0.55]
[1734375625500,2.576,4074.3,4069.8,3.0]
[1734375625501,2.576,4074.3,4070.6,0.55]
[1734375625856,2.576,4074.4,4070.3,0.55]
[1734375626055,0.29604121,4074.5,4069.9,0.02456189]
[1734375626056,3.11705412,4074.3,4070.7,0.55]
[1734375626250,2.576,4074.3,4070.7,0.55]
[1734375626555,0.29604121,4074.5,4071.0,1.28104481]
[1734375626793,2.87204121,4074.5,4074.3,0.24543]
[1734375626975,2.87204121,4074.5,4071.0,1.28104481]
[1734375626976,0.54105412,4074.4,4071.0,1.28104481]
[1734375627179,0.54105412,4074.4,4074.2,0.24544]
[1734375627381,2.5385,4074.6,4071.2,0.55]
[1734375627757,2.5385,4074.6,4074.4,0.24543]
[1734375627973,5.1145,4074.6,4071.6,0.2456]
[1734375628178,2.82985,4074.5,4073.9,0.24545]
[1734375628465,2.576,4074.1,4073.9,0.24546]
[1734375628677,0.55,4074.2,4070.1,0.02456068]
[1734375628678,0.55,4074.2,4070.5,0.73701]
[1734375628885,0.536835,4074.4,4074.2,0.24544]
[1734375629088,0.536835,4074.4,4073.3,0.24549]
[1734375629291,0.536835,4074.4,4074.2,0.24544]
[1734375629495,0.5905185,4074.3,4071.3,0.55]
[1734375629697,0.5905185,4074.3,4071.2,0.55]
[1734375630016,0.5905185,4074.3,4074.2,0.24544]
[1734375630221,0.25385,4074.5,4071.2,0.55]
[1734375630516,0.25385,4074.5,4074.4,0.24543]
[1734375630677,2.5385,4074.6,4074.2,0.24544]
[1734375630882,2.5385,4074.6,4074.4,0.24543]
[1734375631079,0.25385,4074.5,4074.1,0.24545]
[1734375631259,0.25385,4074.5,4071.2,0.55]
[1734375631461,9.96e-06,4074.6,4074.5,0.24542]
[1734375631707,0.980615,4075.7,4074.5,0.24542]
[1734375632014,3.556615,4075.7,4075.4,3.00046]
[1734375632196,0.54604121,4076.8,4071.3,0.02454942]
[1734375632197,8.95,4077.0,4071.6,0.55]
[1734375632516,9.930192,4078.1,4077.0,0.24527]
[1734375632665,9.930192,4078.1,4073.5,0.55]
[1734375632666,8.98997392,4078.0,4073.5,0.02454314]
[1734375633024,8.98997392,4077.9,4074.0,0.24545]
[1734375633219,3.75739131,4077.8,4077.7,3.0]
[1734375633422,3.75739131,4077.8,4074.2,0.02453361]
[1734375633710,3.75739131,4077.8,4073.7,0.55]
[1734375633711,0.03998136,4077.7,4076.9,0.24527]
[1734375633906,0.03998136,4077.7,4076.1,0.24533]
[1734375633907,2.576,4077.6,4075.8,0.24534]
[1734375634135,2.576,4077.6,4073.7,0.55]
[1734375634136,2.576,4077.4,4073.7,0.55]
[1734375634265,2.4242,4077.5,4076.1,0.24533]
[1734375634266,2.576,4077.2,4076.1,0.24533]
[1734375634465,2.576,4076.8,4074.9,0.2454]
[1734375634667,2.576,4076.6,4075.8,0.24534]
[1734375634921,0.25,4077.1,4073.8,0.24546]
[1734375634922,13.8981,4076.4,4073.8,0.24546]
[1734375635213,4.9481,4076.2,4072.6,0.24554]
[1734375635409,2.576,4075.8,4072.6,0.24554]
[1734375635646,2.576,4075.6,4074.4,0.24543]
[1734375635904,2.576,4075.4,4074.4,0.24543]
[1734375636313,2.576,4075.2,4072.1,0.24557]
[1734375636606,0.55,4075.5,4070.5,0.02455135]
[1734375636607,2.576,4075.5,4071.2,0.7989]
[1734375637008,2.576,4075.5,4075.1,0.24539]
[1734375637309,2.8336,4075.4,4071.3,1.22059601]
[1734375637516,2.8336,4075.4,4071.8,1.2140129]
[1734375637517,2.576,4075.4,4071.8,1.2140129]
[1734375637668,2.576,4075.4,4071.3,1.22059601]
[1734375637867,0.2576,4075.3,4075.2,0.24538]
[1734375638067,0.2576,4075.3,4071.5,0.55]
[1734375638068,0.2576,4075.3,4071.7,1.84101612]
[1734375638271,0.2576,4075.3,4075.1,0.24538]
[1734375638469,0.2576,4075.3,4074.7,0.24541]
[1734375638665,0.2576,4075.3,4075.1,3.24538]